[Event "74th Superior Womens Argentine-ch 2023"]
[Site "Buenos Aires"]
[Date "2023.11.21"]
[Round "1.1"]
[White "Ramirez, Marysol"]
[Black "Borda Rodas, Anapaola S."]
[Result "0-1"]
[ECO "D00"]
[WhiteElo "1720"]
[BlackElo "2261"]
[Annotator "RC"]
[PlyCount "66"]
[EventDate "2023.11.20"]
[EventType "swiss"]
[EventCountry "ARG"]
[SourceTitle "playchess.com"]
[Source "ChessBase"]
[SourceQuality "1"]
[TimeControl "5400+30"]

1. d4 {[%emt 0:04:11]} d5 {[%emt 0:00:50]} 2. Bf4 {[%emt 0:00:07]} Nf6 {[%emt 0:01:25]} 3. e3 {[%emt 0:00:11]} g6 {[%emt 0:02:43]} 4. Bd3 {[%emt 0:01:59]} Bg7 {[%emt 0:01:48]} 5. Nd2 {[%emt 0:01:08]} O-O {[%emt 0:03:05]} 6. h4 {[%emt 0:02:22]} h5 {[%emt 0:04:04]} 7. Nh3 {[%emt 0:10:37]} c5 {[%emt 0:01:53]} 8. c3 {[%emt 0:04:21]} Qb6 {[%emt 0:06:41]} 9. Rb1 {[%emt 0:03:37]} Nc6 {[%emt 0:02:52]} 10. Qf3 {[%emt 0:17:14]} e5 {[%emt 0:11:08]} 11. dxe5 {[%emt 0:05:06]} Ng4 {[%emt 0:00:39]} 12. Qg3 {[%emt 0:03:56]} Ngxe5 {[%emt 0:04:24]} 13. e4 {[%emt 0:19:18]} Nxd3+ {[%emt 0:16:23]} 14. Qxd3 {[%emt 0:00:09]} dxe4 {[%emt 0:02:03]} 15. Qe3 {[%emt 0:04:24]} Be6 {[%emt 0:03:19]} 16. b3 {[%emt 0:13:09]} Rad8 {[%emt 0:08:01]} 17. Ng5 {[%emt 0:04:52]} Rfe8 {[%emt 0:11:16]} 18. O-O {[%emt 0:01:10]} Rd3 {[%emt 0:03:02]} 19. Qxe4 {[%emt 0:01:11]} Qd8 {[%emt 0:00:11]} 20. Nxe6 {[%emt 0:00:41]} Rxe6 {[%emt 0:00:05]} 21. Qc4 {[%emt 0:00:15]} Rxc3 {[%emt 0:01:50]} 22. Qa4 {[%emt 0:00:58]} Qxh4 {[%emt 0:01:50]} 23. g3 {[%emt 0:00:28]} Qh3 {[%emt 0:00:43]} 24. Rfe1 {[%emt 0:00:11]} Bd4 {[%emt 0:01:48]} 25. Rxe6 {[%emt 0:00:41]} Qxe6 {[%emt 0:01:47]} 26. Kg2 {[%emt 0:00:34]} Qe2 {[%emt 0:01:44]} 27. Rf1 {[%emt 0:00:25]} Rc2 {[%emt 0:01:12]} 28. a3 {[%emt 0:00:40]} h4 {[%emt 0:02:19]} 29. b4 {[%emt 0:00:20]} Rxd2 {[%emt 0:00:37]} 30. Bxd2 {[%emt 0:00:02]} Qxd2 {[%emt 0:00:59]} 31. bxc5 {[%emt 0:01:05]} hxg3 {[%emt 0:00:16]} 32. Kxg3 {[%emt 0:00:12]} Qd3+ {[%emt 0:00:26]} 33. f3 {[%emt 0:00:21]} Qxf1 {[%emt 0:05:37]} 0-1

[Event "74th Superior Womens Argentine-ch 2023"]
[Site "Buenos Aires"]
[Date "2023.11.21"]
[Round "1.2"]
[White "Campos, Maria Jose"]
[Black "Montiel Marin, Micaela Agustina"]
[Result "1-0"]
[ECO "A21"]
[WhiteElo "2208"]
[BlackElo "1631"]
[Annotator "RC"]
[PlyCount "59"]
[EventDate "2023.11.20"]
[EventType "swiss"]
[EventCountry "ARG"]
[SourceTitle "playchess.com"]
[Source "ChessBase"]
[SourceQuality "1"]
[TimeControl "5400+30"]

1. c4 {[%emt 0:00:03]} g6 {[%emt 0:00:06]} 2. g3 {[%emt 0:00:25]} Bg7 {[%emt 0:00:05]} 3. Bg2 {[%emt 0:00:13]} d6 {[%emt 0:00:28]} 4. Nc3 {[%emt 0:00:21]} e5 {[%emt 0:01:14]} 5. d3 {[%emt 0:01:13]} h6 {[%emt 0:00:32]} 6. Rb1 {[%emt 0:02:10]} f5 {[%emt 0:01:01]} 7. e3 {[%emt 0:01:58]} c6 {[%emt 0:02:07]} 8. Nge2 {[%emt 0:00:37]} Nf6 {[%emt 0:00:13]} 9. O-O {[%emt 0:02:30]} O-O {[%emt 0:00:29]} 10. Kh1 {[%emt 0:10:08]} Be6 {[%emt 0:02:38]} 11. f4 {[%emt 0:03:43]} Nbd7 {[%emt 0:03:23]} 12. b4 {[%emt 0:08:22]} Bf7 {[%emt 0:10:00]} 13. b5 {[%emt 0:03:31]} Qc7 {[%emt 0:03:05]} 14. a4 {[%emt 0:10:56]} exf4 {[%emt 0:06:43]} 15. Nxf4 {[%emt 0:11:29]} Ng4 {[%emt 0:05:35]} 16. Qc2 {[%emt 0:02:37]} g5 {[%emt 0:04:21]} 17. Nfe2 {[%emt 0:00:30]} Bg6 {[%emt 0:00:16]} 18. bxc6 {[%emt 0:06:15]} bxc6 {[%emt 0:00:11]} 19. Nd4 {[%emt 0:04:21]} Nge5 {[%emt 0:02:26]} 20. Ne6 {[%emt 0:00:54]} Qa5 {[%emt 0:03:10]} 21. Bd2 {[%emt 0:03:21]} Qa6 {[%emt 0:06:09]} 22. Nc7 {[%emt 0:04:54]} Qc8 {[%emt 0:00:34]} 23. Nxa8 {[%emt 0:00:24]} Qxa8 {[%emt 0:01:35]} 24. e4 {[%emt 0:05:24]} Qc8 {[%emt 0:14:17]} 25. exf5 {[%emt 0:01:40]} Bxf5 {[%emt 0:00:13]} 26. Rxf5 {[%emt 0:04:43]} Rxf5 {[%emt 0:01:10]} 27. d4 {[%emt 0:01:16]} Nxc4 {[%emt 0:09:08]} 28. Qxf5 {[%emt 0:00:13]} Nxd2 {[%emt 0:00:06]} 29. Rd1 {[%emt 0:00:51]} Nc4 {[%emt 0:00:39]} 30. Qe6+ {[%emt 0:10:28]} 1-0

[Event "74th Superior Womens Argentine-ch 2023"]
[Site "Buenos Aires"]
[Date "2023.11.21"]
[Round "1.3"]
[White "Bossero, Ingrid"]
[Black "Sarquis, Maria Belen"]
[Result "0-1"]
[ECO "C54"]
[WhiteElo "1607"]
[BlackElo "2194"]
[Annotator "RC"]
[PlyCount "72"]
[EventDate "2023.11.20"]
[EventType "swiss"]
[EventCountry "ARG"]
[SourceTitle "playchess.com"]
[Source "ChessBase"]
[SourceQuality "1"]
[TimeControl "5400+30"]

1. e4 {[%emt 0:00:01]} e5 {[%emt 0:00:16]} 2. Nf3 {[%emt 0:00:07]} Nc6 {[%emt 0:00:16]} 3. Bc4 {[%emt 0:00:14]} Nf6 {[%emt 0:00:14]} 4. d3 {[%emt 0:00:20]} Bc5 {[%emt 0:00:21]} 5. c3 {[%emt 0:00:22]} O-O {[%emt 0:01:39]} 6. O-O {[%emt 0:01:02]} d5 {[%emt 0:00:27]} 7. exd5 {[%emt 0:00:59]} Nxd5 {[%emt 0:00:08]} 8. h3 {[%emt 0:03:00]} Nb6 {[%emt 0:02:05]} 9. Bb3 {[%emt 0:01:06]} Bf5 {[%emt 0:01:51]} 10. Bc2 {[%emt 0:03:40]} Re8 {[%emt 0:08:46]} 11. Re1 {[%emt 0:12:07]} Qd7 {[%emt 0:05:28]} 12. Be3 {[%emt 0:02:53]} Bxe3 {[%emt 0:10:02]} 13. Rxe3 {[%emt 0:00:22]} Nd5 {[%emt 0:00:47]} 14. Re1 {[%emt 0:03:46]} Nf4 {[%emt 0:04:54]} 15. Re3 {[%emt 0:05:13]} Nd5 {[%emt 0:12:06]} 16. Re1 {[%emt 0:00:47]} Re6 {[%emt 0:06:15]} 17. d4 {[%emt 0:12:34]} Bxc2 {[%emt 0:07:14]} 18. Qxc2 {[%emt 0:00:07]} Nf4 {[%emt 0:02:00]} 19. Nxe5 {[%emt 0:07:21]} Nxe5 {[%emt 0:01:00]} 20. Rxe5 {[%emt 0:00:32]} Rg6 {[%emt 0:01:50]} 21. Qf5 {[%emt 0:04:33]} Qc6 {[%emt 0:07:54]} 22. Qe4 {[%emt 0:04:51]} Rxg2+ {[%emt 0:01:13]} 23. Kh1 {[%emt 0:01:17]} Qd7 {[%emt 0:05:13]} 24. Qf3 {[%emt 0:02:41]} Rg6 {[%emt 0:00:51]} 25. Na3 {[%emt 0:03:39]} Rh6 {[%emt 0:01:40]} 26. Kg1 {[%emt 0:02:16]} f6 {[%emt 0:03:23]} 27. Re3 {[%emt 0:06:49]} Nd5 {[%emt 0:03:49]} 28. Rd3 {[%emt 0:02:19]} g5 {[%emt 0:01:10]} 29. Qg4 {[%emt 0:03:04]} f5 {[%emt 0:00:12]} 30. Qg3 {[%emt 0:02:37]} Nf4 {[%emt 0:00:26]} 31. Re3 {[%emt 0:02:46]} Nxh3+ {[%emt 0:01:04]} 32. Qxh3 {[%emt 0:03:34]} Rxh3 {[%emt 0:00:05]} 33. Rxh3 {[%emt 0:00:05]} Re8 {[%emt 0:01:57]} 34. Kf1 {[%emt 0:00:11]} f4 {[%emt 0:00:26]} 35. Rh1 {[%emt 0:02:09]} Qg4 {[%emt 0:00:32]} 36. Rg1 {[%emt 0:02:27]} Qh3+ {[%emt 0:00:10]} 0-1

[Event "74th Superior Womens Argentine-ch 2023"]
[Site "Buenos Aires"]
[Date "2023.11.21"]
[Round "1.4"]
[White "Zuriel, Marisa"]
[Black "Recalde, Ailin"]
[Result "1-0"]
[ECO "B38"]
[WhiteElo "2165"]
[BlackElo "1449"]
[Annotator "RC"]
[PlyCount "59"]
[EventDate "2023.11.20"]
[EventType "swiss"]
[EventCountry "ARG"]
[SourceTitle "playchess.com"]
[Source "ChessBase"]
[SourceQuality "1"]
[TimeControl "5400+30"]

1. e4 {[%emt 0:00:09]} c5 {[%emt 0:00:24]} 2. Nf3 {[%emt 0:00:12]} Nc6 {[%emt 0:00:17]} 3. d4 {[%emt 0:01:02]} cxd4 {[%emt 0:00:42]} 4. Nxd4 {[%emt 0:00:09]} g6 {[%emt 0:00:34]} 5. c4 {[%emt 0:05:06]} Bg7 {[%emt 0:02:36]} 6. Be3 {[%emt 0:00:10]} d6 {[%emt 0:02:49]} 7. Nc3 {[%emt 0:00:40]} Nf6 {[%emt 0:00:59]} 8. Be2 {[%emt 0:00:27]} O-O {[%emt 0:00:57]} 9. O-O {[%emt 0:00:22]} Bd7 {[%emt 0:01:33]} 10. h3 {[%emt 0:05:45]} Rc8 {[%emt 0:03:22]} 11. Rc1 {[%emt 0:07:14]} a6 {[%emt 0:05:06]} 12. Nc2 {[%emt 0:03:57]} Qc7 {[%emt 0:03:27]} 13. Qd2 {[%emt 0:04:06]} Nd8 {[%emt 0:03:31]} 14. Rfd1 {[%emt 0:06:19]} Ne6 {[%emt 0:02:49]} 15. f3 {[%emt 0:03:53]} Rb8 {[%emt 0:02:44]} 16. Nb4 {[%emt 0:06:48]} Qa5 {[%emt 0:06:38]} 17. Nbd5 {[%emt 0:04:04]} Nxd5 {[%emt 0:05:03]} 18. Nxd5 {[%emt 0:04:28]} Qd8 {[%emt 0:03:01]} 19. Bb6 {[%emt 0:00:26]} Qe8 {[%emt 0:00:11]} 20. Kh1 {[%emt 0:02:08]} f5 {[%emt 0:03:14]} 21. exf5 {[%emt 0:00:40]} Rxf5 {[%emt 0:00:45]} 22. f4 {[%emt 0:04:18]} Bh6 {[%emt 0:02:37]} 23. Rf1 {[%emt 0:04:24]} Qf8 {[%emt 0:02:40]} 24. Be3 {[%emt 0:04:46]} Bc6 {[%emt 0:03:36]} 25. Bg4 {[%emt 0:02:42]} Nxf4 {[%emt 0:06:45]} 26. Bxf5 {[%emt 0:01:38]} gxf5 {[%emt 0:02:37]} 27. Bxf4 {[%emt 0:00:41]} Bg7 {[%emt 0:01:19]} 28. Bg5 {[%emt 0:01:56]} Bf6 {[%emt 0:02:44]} 29. Bxf6 {[%emt 0:00:19]} exf6 {[%emt 0:00:08]} 30. Rxf5 {[%emt 0:00:18]} 1-0

[Event "74th Superior Womens Argentine-ch 2023"]
[Site "Buenos Aires"]
[Date "2023.11.21"]
[Round "1.5"]
[White "Quiroga Ortiz, Isabella"]
[Black "Brizzi, Milagros Tatiana"]
[Result "0-1"]
[ECO "B13"]
[WhiteElo "1417"]
[BlackElo "2076"]
[Annotator "RC"]
[PlyCount "80"]
[EventDate "2023.11.20"]
[EventType "swiss"]
[EventCountry "ARG"]
[SourceTitle "playchess.com"]
[Source "ChessBase"]
[SourceQuality "1"]
[TimeControl "5400+30"]

1. e4 {[%emt 0:00:02]} c6 {[%emt 0:00:11]} 2. d4 {[%emt 0:00:06]} d5 {[%emt 0:00:07]} 3. exd5 {[%emt 0:00:16]} cxd5 {[%emt 0:01:19]} 4. Nf3 {[%emt 0:00:14]} Nc6 {[%emt 0:00:32]} 5. Bd3 {[%emt 0:00:34]} Bg4 {[%emt 0:00:29]} 6. c3 {[%emt 0:00:31]} e6 {[%emt 0:01:16]} 7. O-O {[%emt 0:01:13]} Nf6 {[%emt 0:00:57]} 8. Nbd2 {[%emt 0:01:30]} Bd6 {[%emt 0:01:12]} 9. Re1 {[%emt 0:02:00]} O-O {[%emt 0:00:23]} 10. Nf1 {[%emt 0:01:14]} Qc7 {[%emt 0:02:59]} 11. Bg5 {[%emt 0:04:34]} Nd7 {[%emt 0:02:26]} 12. h3 {[%emt 0:08:48]} Bh5 {[%emt 0:01:08]} 13. g4 {[%emt 0:01:34]} Bg6 {[%emt 0:02:54]} 14. Kg2 {[%emt 0:02:03]} Rae8 {[%emt 0:08:01]} 15. Ng3 {[%emt 0:01:58]} h6 {[%emt 0:11:25]} 16. Bc1 {[%emt 0:03:14]} Nf6 {[%emt 0:15:31]} 17. g5 {[%emt 0:04:11]} Bxg3 {[%emt 0:02:19]} 18. fxg3 {[%emt 0:00:08]} Ne4 {[%emt 0:10:56]} 19. Bf4 {[%emt 0:04:15]} e5 {[%emt 0:02:36]} 20. dxe5 {[%emt 0:02:37]} hxg5 {[%emt 0:01:53]} 21. Nxg5 {[%emt 0:08:45]} Qb6 {[%emt 0:04:24]} 22. Nxe4 {[%emt 0:04:59]} dxe4 {[%emt 0:00:33]} 23. Bxe4 {[%emt 0:07:30]} Qxb2+ {[%emt 0:00:33]} 24. Kg1 {[%emt 0:03:37]} Nxe5 {[%emt 0:04:19]} 25. Bxe5 {[%emt 0:04:59]} Rxe5 {[%emt 0:02:32]} 26. Bxg6 {[%emt 0:00:50]} Rxe1+ {[%emt 0:00:28]} 27. Qxe1 {[%emt 0:00:06]} fxg6 {[%emt 0:00:11]} 28. h4 {[%emt 0:01:58]} Qb6+ {[%emt 0:01:40]} 29. Kh1 {[%emt 0:03:24]} Kh7 {[%emt 0:07:12]} 30. Rb1 {[%emt 0:07:18]} Qc6+ {[%emt 0:00:20]} 31. Kg1 {[%emt 0:01:57]} Qc5+ {[%emt 0:00:52]} 32. Kg2 {[%emt 0:02:17]} Qd5+ {[%emt 0:00:09]} 33. Kg1 {[%emt 0:00:27]} Rf3 {[%emt 0:00:47]} 34. a3 {[%emt 0:03:41]} Rd3 {[%emt 0:02:02]} 35. Ra1 {[%emt 0:06:14]} Rd2 {[%emt 0:00:38]} 36. Qf1 {[%emt 0:01:03]} Qc5+ {[%emt 0:01:46]} 37. Kh1 {[%emt 0:01:06]} Qxc3 {[%emt 0:00:56]} 38. Rd1 {[%emt 0:02:14]} Qc6+ {[%emt 0:00:07]} 39. Kg1 {[%emt 0:00:11]} Qc5+ {[%emt 0:00:04]} 40. Kh1 {[%emt 0:00:10]} Qd5+ {[%emt 0:00:04]} 0-1

[Event "74th Superior Womens Argentine-ch 2023"]
[Site "Buenos Aires"]
[Date "2023.11.22"]
[Round "2.1"]
[White "Borda Rodas, Anapaola S."]
[Black "Flores Mirabal, Nancy"]
[Result "1-0"]
[ECO "B52"]
[WhiteElo "2261"]
[BlackElo "1937"]
[Annotator "RC"]
[PlyCount "69"]
[EventDate "2023.11.20"]
[EventType "swiss"]
[EventCountry "ARG"]
[SourceTitle "playchess.com"]
[Source "ChessBase"]
[SourceQuality "1"]
[TimeControl "5400+30"]

1. e4 {[%emt 0:00:03]} c5 {[%emt 0:00:07]} 2. Nf3 {[%emt 0:00:27]} d6 {[%emt 0:00:22]} 3. Bb5+ {[%emt 0:00:25]} Bd7 {[%emt 0:01:19]} 4. Bxd7+ {[%emt 0:01:05]} Qxd7 {[%emt 0:01:42]} 5. c4 {[%emt 0:01:05]} Nc6 {[%emt 0:11:24]} 6. Nc3 {[%emt 0:07:20]} g6 {[%emt 0:00:50]} 7. d4 {[%emt 0:01:48]} cxd4 {[%emt 0:04:31]} 8. Nxd4 {[%emt 0:00:07]} Bg7 {[%emt 0:00:37]} 9. Be3 {[%emt 0:03:53]} Rc8 {[%emt 0:04:52]} 10. f3 {[%emt 0:06:59]} Nf6 {[%emt 0:13:06]} 11. Nde2 {[%emt 0:07:33]} O-O {[%emt 0:09:09]} 12. O-O {[%emt 0:05:54]} Rfd8 {[%emt 0:03:25]} 13. Qd2 {[%emt 0:07:48]} e6 {[%emt 0:05:25]} 14. Rfd1 {[%emt 0:23:19]} Qe8 {[%emt 0:04:11]} 15. Nf4 {[%emt 0:05:04]} Ne7 {[%emt 0:19:59]} 16. Bxa7 {[%emt 0:11:01]} Rxc4 {[%emt 0:00:38]} 17. Bb6 {[%emt 0:04:29]} Rd7 {[%emt 0:00:20]} 18. Rac1 {[%emt 0:03:06]} Qb8 {[%emt 0:04:40]} 19. Nd3 {[%emt 0:01:19]} Ne8 {[%emt 0:04:41]} 20. a4 {[%emt 0:01:19]} Bd4+ {[%emt 0:05:31]} 21. Bxd4 {[%emt 0:00:14]} Rxd4 {[%emt 0:00:04]} 22. Nb5 {[%emt 0:00:31]} Rxd3 {[%emt 0:03:14]} 23. Qxd3 {[%emt 0:00:07]} d5 {[%emt 0:00:05]} 24. Qe3 {[%emt 0:02:21]} Qd8 {[%emt 0:00:53]} 25. e5 {[%emt 0:00:27]} Nc6 {[%emt 0:00:19]} 26. f4 {[%emt 0:01:26]} Qa5 {[%emt 0:00:36]} 27. Qa3 {[%emt 0:00:39]} Ng7 {[%emt 0:00:59]} 28. Nd6 {[%emt 0:00:40]} Nh5 {[%emt 0:00:41]} 29. Nxb7 {[%emt 0:02:00]} Qb6+ {[%emt 0:00:34]} 30. Nc5 {[%emt 0:00:41]} Rc7 {[%emt 0:00:25]} 31. Kh1 {[%emt 0:00:56]} Nxf4 {[%emt 0:00:23]} 32. Rf1 {[%emt 0:00:56]} Ne2 {[%emt 0:00:22]} 33. Nxe6 {[%emt 0:00:32]} Rc8 {[%emt 0:00:09]} 34. Qf3 {[%emt 0:00:33]} Nxe5 {[%emt 0:00:27]} 35. Rxc8+ {[%emt 0:01:53]} 1-0

[Event "74th Superior Womens Argentine-ch 2023"]
[Site "Buenos Aires"]
[Date "2023.11.22"]
[Round "2.2"]
[White "Bosco, Giuliana"]
[Black "Campos, Maria Jose"]
[Result "0-1"]
[ECO "C90"]
[WhiteElo "1878"]
[BlackElo "2208"]
[Annotator "RC"]
[PlyCount "86"]
[EventDate "2023.11.20"]
[EventType "swiss"]
[EventCountry "ARG"]
[SourceTitle "playchess.com"]
[Source "ChessBase"]
[SourceQuality "1"]
[TimeControl "5400+30"]

1. e4 {[%emt 0:00:04]} e5 {[%emt 0:12:07]} 2. Nf3 {[%emt 0:00:11]} Nc6 {[%emt 0:00:10]} 3. Bb5 {[%emt 0:00:09]} a6 {[%emt 0:00:15]} 4. Ba4 {[%emt 0:00:09]} Nf6 {[%emt 0:01:34]} 5. O-O {[%emt 0:01:56]} Be7 {[%emt 0:01:11]} 6. Re1 {[%emt 0:00:27]} b5 {[%emt 0:00:53]} 7. Bb3 {[%emt 0:00:10]} d6 {[%emt 0:00:37]} 8. c3 {[%emt 0:02:32]} O-O {[%emt 0:00:39]} 9. a4 {[%emt 0:05:49]} Bb7 {[%emt 0:08:47]} 10. d4 {[%emt 0:09:43]} h6 {[%emt 0:08:57]} 11. Nbd2 {[%emt 0:09:02]} exd4 {[%emt 0:17:17]} 12. cxd4 {[%emt 0:10:56]} Nb4 {[%emt 0:00:25]} 13. d5 {[%emt 0:06:29]} Nd3 {[%emt 0:07:25]} 14. Re3 {[%emt 0:03:34]} Nc5 {[%emt 0:04:00]} 15. Nd4 {[%emt 0:07:43]} bxa4 {[%emt 0:12:50]} 16. Bc2 {[%emt 0:04:52]} Re8 {[%emt 0:02:54]} 17. Bxa4 {[%emt 0:07:57]} Nxa4 {[%emt 0:01:26]} 18. Rxa4 {[%emt 0:00:12]} Nd7 {[%emt 0:04:55]} 19. f4 {[%emt 0:07:02]} Bf6 {[%emt 0:01:46]} 20. Nf5 {[%emt 0:01:46]} Nc5 {[%emt 0:01:06]} 21. Rc4 {[%emt 0:03:44]} Bc8 {[%emt 0:01:28]} 22. Ng3 {[%emt 0:00:57]} a5 {[%emt 0:01:10]} 23. e5 {[%emt 0:08:35]} Be7 {[%emt 0:05:44]} 24. Rd4 {[%emt 0:03:10]} dxe5 {[%emt 0:01:33]} 25. fxe5 {[%emt 0:00:01]} Ne6 {[%emt 0:01:08]} 26. dxe6 {[%emt 0:04:01]} Qxd4 {[%emt 0:00:07]} 27. exf7+ {[%emt 0:00:12]} Kxf7 {[%emt 0:00:26]} 28. Qh5+ {[%emt 0:00:18]} g6 {[%emt 0:01:10]} 29. Qxh6 {[%emt 0:00:12]} Rh8 {[%emt 0:00:58]} 30. Qxh8 {[%emt 0:02:32]} Qxe3+ {[%emt 0:00:06]} 31. Kh1 {[%emt 0:00:05]} Qe1+ {[%emt 0:00:21]} 32. Ndf1 {[%emt 0:00:01]} Qxc1 {[%emt 0:00:24]} 33. Qh7+ {[%emt 0:00:16]} Kf8 {[%emt 0:00:27]} 34. Qh8+ {[%emt 0:00:19]} Kf7 {[%emt 0:00:13]} 35. Qh7+ {[%emt 0:00:10]} Ke8 {[%emt 0:01:56]} 36. Qg8+ {[%emt 0:01:31]} Bf8 {[%emt 0:00:12]} 37. Qxg6+ {[%emt 0:00:17]} Kd8 {[%emt 0:00:10]} 38. Qf6+ {[%emt 0:01:35]} Be7 {[%emt 0:00:04]} 39. Qh8+ {[%emt 0:00:44]} Kd7 {[%emt 0:00:05]} 40. Qg8 {[%emt 0:00:32]} Ra6 {[%emt 0:01:54]} 41. Qg4+ {[%emt 0:00:32]} Re6 {[%emt 0:00:16]} 42. h4 {[%emt 0:00:31]} Ba6 {[%emt 0:00:23]} 43. Qf5 {[%emt 0:00:30]} Bxh4 {[%emt 0:00:43]} 0-1

[Event "74th Superior Womens Argentine-ch 2023"]
[Site "Buenos Aires"]
[Date "2023.11.22"]
[Round "2.3"]
[White "Sarquis, Maria Belen"]
[Black "Encina, Guadalupe"]
[Result "1-0"]
[ECO "B52"]
[WhiteElo "2194"]
[BlackElo "1877"]
[Annotator "RC"]
[PlyCount "57"]
[EventDate "2023.11.20"]
[EventType "swiss"]
[EventCountry "ARG"]
[SourceTitle "playchess.com"]
[Source "ChessBase"]
[SourceQuality "1"]
[TimeControl "5400+30"]

1. e4 {[%emt 0:00:04]} c5 {[%emt 0:00:08]} 2. Nf3 {[%emt 0:00:12]} d6 {[%emt 0:00:05]} 3. Bb5+ {[%emt 0:00:09]} Bd7 {[%emt 0:00:04]} 4. Bxd7+ {[%emt 0:00:36]} Qxd7 {[%emt 0:00:05]} 5. c4 {[%emt 0:00:16]} Nf6 {[%emt 0:00:06]} 6. Nc3 {[%emt 0:00:10]} g6 {[%emt 0:00:03]} 7. d4 {[%emt 0:00:24]} cxd4 {[%emt 0:00:05]} 8. Nxd4 {[%emt 0:00:06]} Bg7 {[%emt 0:00:04]} 9. b3 {[%emt 0:02:21]} Nc6 {[%emt 0:00:06]} 10. Bb2 {[%emt 0:00:28]} Qg4 {[%emt 0:00:11]} 11. O-O {[%emt 0:07:39]} Nxd4 {[%emt 0:18:37]} 12. Qxd4 {[%emt 0:00:06]} Nh5 {[%emt 0:00:15]} 13. Qd1 {[%emt 0:10:44]} Qg5 {[%emt 0:01:23]} 14. g3 {[%emt 0:04:40]} O-O {[%emt 0:07:03]} 15. Rb1 {[%emt 0:10:07]} Qa5 {[%emt 0:11:35]} 16. Nd5 {[%emt 0:07:40]} Rfe8 {[%emt 0:01:04]} 17. Qd3 {[%emt 0:09:34]} a6 {[%emt 0:11:08]} 18. a4 {[%emt 0:00:56]} Bxb2 {[%emt 0:08:39]} 19. Rxb2 {[%emt 0:00:34]} Rab8 {[%emt 0:00:06]} 20. Ra1 {[%emt 0:04:19]} Ng7 {[%emt 0:10:33]} 21. b4 {[%emt 0:05:30]} Qd8 {[%emt 0:00:04]} 22. a5 {[%emt 0:00:09]} Ne6 {[%emt 0:00:26]} 23. Rd1 {[%emt 0:06:27]} Qc8 {[%emt 0:08:34]} 24. Nb6 {[%emt 0:04:53]} Qc7 {[%emt 0:00:09]} 25. h4 {[%emt 0:05:19]} h5 {[%emt 0:00:54]} 26. f4 {[%emt 0:00:35]} Nd8 {[%emt 0:03:16]} 27. Nd5 {[%emt 0:04:44]} Qd7 {[%emt 0:01:20]} 28. e5 {[%emt 0:00:39]} Nc6 {[%emt 0:02:45]} 29. c5 {[%emt 0:15:39]} 1-0

[Event "74th Superior Womens Argentine-ch 2023"]
[Site "Buenos Aires"]
[Date "2023.11.22"]
[Round "2.4"]
[White "Gaite, Karen Nerina"]
[Black "Zuriel, Marisa"]
[Result "0-1"]
[ECO "A61"]
[WhiteElo "1871"]
[BlackElo "2165"]
[Annotator "RC"]
[PlyCount "138"]
[EventDate "2023.11.20"]
[EventType "swiss"]
[EventCountry "ARG"]
[SourceTitle "playchess.com"]
[Source "ChessBase"]
[SourceQuality "1"]
[TimeControl "5400+30"]

1. d4 {[%emt 0:00:18]} Nf6 {[%emt 0:03:50]} 2. c4 {[%emt 0:00:24]} c5 {[%emt 0:00:48]} 3. d5 {[%emt 0:01:13]} e6 {[%emt 0:01:11]} 4. Nc3 {[%emt 0:00:19]} exd5 {[%emt 0:00:06]} 5. cxd5 {[%emt 0:00:19]} d6 {[%emt 0:00:06]} 6. Nf3 {[%emt 0:00:11]} g6 {[%emt 0:00:14]} 7. Bf4 {[%emt 0:00:35]} a6 {[%emt 0:00:34]} 8. a4 {[%emt 0:00:45]} Bg7 {[%emt 0:00:16]} 9. e3 {[%emt 0:00:23]} O-O {[%emt 0:00:33]} 10. h3 {[%emt 0:00:12]} Qe7 {[%emt 0:00:30]} 11. Nd2 {[%emt 0:02:52]} Nbd7 {[%emt 0:00:31]} 12. Nc4 {[%emt 0:00:34]} Ne8 {[%emt 0:00:10]} 13. Be2 {[%emt 0:00:41]} Ne5 {[%emt 0:04:48]} 14. Nb6 {[%emt 0:02:49]} Rb8 {[%emt 0:00:07]} 15. O-O {[%emt 0:01:44]} f5 {[%emt 0:00:53]} 16. Bh2 {[%emt 0:00:05]} g5 {[%emt 0:04:14]} 17. Qd2 {[%emt 0:05:20]} Bh6 {[%emt 0:13:51]} 18. f4 {[%emt 0:08:39]} Nd7 {[%emt 0:17:46]} 19. Nxc8 {[%emt 0:09:39]} Rxc8 {[%emt 0:00:06]} 20. Bd3 {[%emt 0:02:05]} c4 {[%emt 0:11:06]} 21. Bc2 {[%emt 0:05:41]} Nc5 {[%emt 0:00:06]} 22. e4 {[%emt 0:09:22]} fxe4 {[%emt 0:07:34]} 23. Rae1 {[%emt 0:02:16]} gxf4 {[%emt 0:02:04]} 24. Nxe4 {[%emt 0:05:41]} Qh4 {[%emt 0:04:10]} 25. Rf3 {[%emt 0:04:32]} Nd7 {[%emt 0:07:03]} 26. Qf2 {[%emt 0:01:32]} Qxf2+ {[%emt 0:01:27]} 27. Rxf2 {[%emt 0:01:44]} b5 {[%emt 0:03:45]} 28. Ref1 {[%emt 0:13:09]} Nb6 {[%emt 0:00:16]} 29. Bxf4 {[%emt 0:04:57]} Bxf4 {[%emt 0:00:57]} 30. Rxf4 {[%emt 0:02:56]} Rxf4 {[%emt 0:00:07]} 31. Rxf4 {[%emt 0:00:30]} Nxd5 {[%emt 0:00:25]} 32. Rg4+ {[%emt 0:03:28]} Kf8 {[%emt 0:00:23]} 33. Ng5 {[%emt 0:01:00]} h6 {[%emt 0:01:10]} 34. Nh7+ {[%emt 0:03:23]} Ke7 {[%emt 0:00:58]} 35. Bf5 {[%emt 0:00:40]} Rc5 {[%emt 0:06:52]} 36. Re4+ {[%emt 0:03:55]} Kd8 {[%emt 0:05:00]} 37. Nf8 {[%emt 0:01:15]} Ndc7 {[%emt 0:00:06]} 38. g4 {[%emt 0:01:03]} b4 {[%emt 0:02:10]} 39. Ng6 {[%emt 0:01:02]} Nd5 {[%emt 0:01:48]} 40. Nf8 {[%emt 0:00:45]} Ndc7 {[%emt 0:00:43]} 41. Ng6 {[%emt 0:00:12]} Nd5 {[%emt 0:01:24]} 42. Nf8 {[%emt 0:00:33]} Ng7 {[%emt 0:00:27]} 43. Bg6 {[%emt 0:02:07]} c3 {[%emt 0:00:14]} 44. bxc3 {[%emt 0:00:52]} bxc3 {[%emt 0:00:09]} 45. Re1 {[%emt 0:00:01]} Nf4 {[%emt 0:01:20]} 46. Bc2 {[%emt 0:01:05]} Nxh3+ {[%emt 0:00:15]} 47. Kg2 {[%emt 0:00:01]} Nf4+ {[%emt 0:00:25]} 48. Kf3 {[%emt 0:00:54]} Nd5 {[%emt 0:00:23]} 49. Re4 {[%emt 0:00:12]} a5 {[%emt 0:00:31]} 50. Ng6 {[%emt 0:00:55]} Nb4 {[%emt 0:00:37]} 51. Re2 {[%emt 0:00:02]} Nxc2 {[%emt 0:00:31]} 52. Rxc2 {[%emt 0:00:06]} Rc4 {[%emt 0:00:19]} 53. Nf4 {[%emt 0:00:44]} Kd7 {[%emt 0:00:53]} 54. Nd5 {[%emt 0:00:58]} Kc6 {[%emt 0:00:16]} 55. Ne3 {[%emt 0:00:42]} Rc5 {[%emt 0:00:14]} 56. Rh2 {[%emt 0:00:24]} h5 {[%emt 0:00:31]} 57. gxh5 {[%emt 0:00:30]} Nxh5 {[%emt 0:00:07]} 58. Ke4 {[%emt 0:00:27]} Ng7 {[%emt 0:00:43]} 59. Kd3 {[%emt 0:00:39]} Ne6 {[%emt 0:00:16]} 60. Nc2 {[%emt 0:00:28]} d5 {[%emt 0:00:32]} 61. Rh6 {[%emt 0:00:27]} Kd7 {[%emt 0:00:06]} 62. Rh7+ {[%emt 0:00:26]} Kd6 {[%emt 0:00:12]} 63. Rh6 {[%emt 0:00:36]} Rc4 {[%emt 0:00:46]} 64. Na3 {[%emt 0:00:36]} Rd4+ {[%emt 0:01:17]} 65. Kxc3 {[%emt 0:00:23]} Rxa4 {[%emt 0:00:03]} 66. Nb5+ {[%emt 0:00:35]} Ke7 {[%emt 0:00:46]} 67. Rh7+ {[%emt 0:00:28]} Kf6 {[%emt 0:00:17]} 68. Rd7 {[%emt 0:00:31]} Rc4+ {[%emt 0:00:49]} 69. Kd3 {[%emt 0:00:27]} Nc5+ {[%emt 0:01:53]} 0-1